bitfinex/quotes_BTCUSD_20250817
["timestamp","ask_amount","ask_price","bid_price","bid_amount"]
[1755416667639,0.00508282,118130.0,118120.0,0.72045004]
[1755416669055,0.00508282,118130.0,118120.0,0.46027416]
[1755416669271,0.00508282,118130.0,118120.0,0.72045004]
[1755416671378,0.00508282,118130.0,118120.0,0.46027416]
[1755416671598,0.00722282,118130.0,118120.0,0.46027416]
[1755416671823,0.01041282,118130.0,118120.0,0.72045004]
[1755416677392,0.00722282,118130.0,118120.0,0.72045004]
[1755416677608,0.00508282,118130.0,118120.0,0.46027416]
[1755416678579,0.00508282,118130.0,118120.0,0.72045004]
[1755416679216,0.00508282,118130.0,118120.0,0.46027416]
[1755416679422,0.00508282,118130.0,118120.0,0.72045004]
[1755416690241,0.00508282,118130.0,118120.0,0.46027416]
[1755416690429,0.00508282,118130.0,118120.0,0.72045004]
[1755416691889,0.00808282,118130.0,118120.0,0.72045004]
[1755416692150,0.01024282,118130.0,118120.0,0.72045004]
[1755416692641,0.01024282,118130.0,118120.0,0.46027416]
[1755416692856,0.01024282,118130.0,118120.0,0.72045004]
[1755416696570,0.00508282,118130.0,118120.0,0.72045004]
[1755416701950,0.00808282,118130.0,118120.0,0.46027416]
[1755416702180,0.76756144,118130.0,118120.0,0.11325305]
[1755416702398,0.76756144,118130.0,118120.0,0.08781405]
[1755416702610,0.76756144,118130.0,118120.0,0.21693405]
[1755416702826,0.50738556,118130.0,118120.0,0.21693405]
[1755416703505,0.24720968,118130.0,118120.0,0.21693405]
[1755416703715,0.50738556,118130.0,118120.0,0.21693405]
[1755416704307,0.50738556,118130.0,118120.0,0.24704206]
[1755416707215,0.25722019,118130.0,118120.0,0.24704206]
[1755416707419,0.51739607,118130.0,118120.0,0.24704206]
[1755416708496,0.77757195,118130.0,118120.0,0.13208]
[1755416709107,0.51739607,118130.0,118120.0,0.13208]
[1755416709255,0.56824607,118130.0,118120.0,0.13208]
[1755416709470,0.51739607,118130.0,118120.0,0.13208]
[1755416709677,0.51739607,118130.0,118120.0,0.12908]
[1755416710048,0.51739607,118130.0,118120.0,0.13008]
[1755416710252,0.4397237,118130.0,118120.0,0.13108]
[1755416712482,0.45016452,118130.0,118120.0,0.13108]
[1755416712695,0.4397237,118130.0,118120.0,0.13108]
[1755416735725,0.17954782,118130.0,118120.0,0.13108]
[1755416736192,0.4397237,118130.0,118120.0,0.13108]
[1755416736407,0.4397237,118130.0,118120.0,0.144188]
[1755416738158,0.17954782,118130.0,118120.0,0.144188]
[1755416738369,0.4397237,118130.0,118120.0,0.144188]
[1755416739840,0.7797237,118130.0,118120.0,0.002]
[1755416740044,1.03989958,118130.0,118120.0,0.002]
[1755416740276,1.06534458,118130.0,118120.0,0.13092]
[1755416740690,1.06534458,118130.0,118120.0,0.12992]
[1755416741124,1.06534458,118130.0,118120.0,0.001]
[1755416744413,1.06534458,118130.0,118120.0,0.002]
[1755416745670,1.06534458,118130.0,118120.0,0.001]
[1755416746023,0.16931933,118120.0,118110.0,0.12892]
[1755416746233,0.68967109,118120.0,118110.0,0.22662605]
[1755416746438,0.69483109,118120.0,118110.0,0.22662605]
[1755416747384,0.69483109,118120.0,118110.0,0.22762605]
[1755416747585,0.69483109,118120.0,118110.0,0.22862605]
[1755416751319,0.17447933,118120.0,118110.0,0.22862605]
[1755416751528,0.69483109,118120.0,118110.0,0.22862605]
[1755416759337,0.17447933,118120.0,118110.0,0.22862605]
[1755416759546,0.69483109,118120.0,118110.0,0.22862605]
[1755416761076,0.17447933,118120.0,118110.0,0.22862605]
[1755416761303,0.43465521,118120.0,118110.0,0.22862605]
[1755416761706,0.43465521,118120.0,118110.0,0.23074605]
[1755416762129,0.42949521,118120.0,118110.0,0.23373605]
[1755416762545,0.42949521,118120.0,118110.0,0.23074605]
[1755416762954,0.16931933,118120.0,118110.0,0.23074605]
[1755416763163,0.42949521,118120.0,118110.0,0.23074605]
[1755416770167,0.16931933,118120.0,118110.0,0.23074605]
[1755416770622,0.42949521,118120.0,118110.0,0.23074605]
[1755416772488,0.43257521,118120.0,118110.0,0.23074605]
[1755416772651,0.43471521,118120.0,118110.0,0.23074605]
[1755416772874,0.17453933,118120.0,118110.0,0.23074605]
[1755416773248,0.43471521,118120.0,118110.0,0.23074605]
[1755416773447,0.43163521,118120.0,118110.0,0.23074605]
[1755416774418,0.43471521,118120.0,118110.0,0.23074605]
[1755416776745,0.43163521,118120.0,118110.0,0.23074605]
[1755416776955,0.43471521,118120.0,118110.0,0.23074605]
[1755416777688,0.17453933,118120.0,118110.0,0.23074605]
[1755416777913,0.43471521,118120.0,118110.0,0.23074605]
[1755416787518,0.17453933,118120.0,118110.0,0.23074605]
[1755416787848,0.43471521,118120.0,118110.0,0.23074605]
[1755416791939,0.43471521,118120.0,118110.0,0.22862605]
[1755416795991,0.43471521,118120.0,118110.0,0.23071605]
[1755416796404,0.17762782,118130.0,118110.0,0.6602256]
[1755416796613,0.17438782,118130.0,118120.0,0.34498993]
[1755416796819,0.17438782,118130.0,118120.0,0.15322561]
[1755416797025,0.17438782,118130.0,118120.0,0.32254494]
[1755416798396,0.17438782,118130.0,118120.0,0.58272082]
[1755416799300,0.17438782,118130.0,118120.0,0.58472082]
[1755416800577,0.17438782,118130.0,118120.0,0.58672082]
[1755416806183,0.17438782,118130.0,118120.0,0.32654494]
[1755416813442,0.00508282,118130.0,118120.0,0.58672082]
[1755416813658,0.0103736,118130.0,118120.0,0.58672082]
[1755416813867,0.00508282,118130.0,118120.0,0.58672082]
[1755416814985,0.0103736,118130.0,118120.0,0.58672082]
[1755416816952,0.00508282,118130.0,118120.0,0.58672082]
[1755416819334,0.00508282,118130.0,118120.0,0.32654494]
[1755416819550,0.00508282,118130.0,118120.0,0.58672082]
[1755416826598,0.00508282,118130.0,118120.0,0.71548082]
[1755416830173,0.00508282,118130.0,118120.0,0.45530494]
[1755416830337,0.00508282,118130.0,118120.0,0.71548082]
[1755416830757,0.00508282,118130.0,118120.0,0.45530494]
[1755416830989,0.00508282,118130.0,118120.0,0.71548082]
[1755416832426,0.00508282,118130.0,118120.0,0.45530494]
[1755416832558,0.00508282,118130.0,118120.0,0.71548082]
[1755416843847,0.00508282,118130.0,118120.0,0.45530494]
[1755416844055,0.00508282,118130.0,118120.0,0.71548082]
[1755416844056,0.0103736,118130.0,118120.0,0.71548082]
[1755416844467,0.0125436,118130.0,118120.0,0.71548082]
[1755416844673,0.0156536,118130.0,118120.0,0.71548082]
[1755416847265,0.0156536,118130.0,118120.0,0.45530494]
[1755416847450,0.0156536,118130.0,118120.0,0.71548082]
[1755416848196,0.01036282,118130.0,118120.0,0.71548082]
[1755416848836,0.0156536,118130.0,118120.0,0.71548082]
[1755416851164,0.01036282,118130.0,118120.0,0.71548082]
[1755416855311,0.0156536,118130.0,118120.0,0.71548082]
[1755416856203,0.01036282,118130.0,118120.0,0.71548082]
[1755416858210,0.00725282,118130.0,118120.0,0.71548082]
[1755416858433,0.00508282,118130.0,118120.0,0.71548082]
[1755416863434,0.00508282,118130.0,118120.0,0.45530494]
[1755416863640,0.00508282,118130.0,118120.0,0.71548082]
[1755416872106,0.0103736,118130.0,118120.0,0.71548082]
[1755416872958,0.0135836,118130.0,118120.0,0.71548082]
[1755416873799,0.0135836,118130.0,118120.0,0.45530494]
[1755416874226,0.0135836,118130.0,118120.0,0.71548082]
[1755416875350,0.0156236,118130.0,118120.0,0.71548082]
[1755416877204,0.0156236,118130.0,118120.0,0.45530494]
[1755416877407,0.0156236,118130.0,118120.0,0.71548082]
[1755416882370,0.1849286,118130.0,118120.0,0.71548082]
[1755416882625,0.17963782,118130.0,118120.0,0.71548082]
[1755416884783,0.17963782,118130.0,118120.0,0.45530494]
[1755416885033,0.17963782,118130.0,118120.0,0.71548082]
[1755416888089,0.17963782,118130.0,118120.0,0.45530494]
[1755416891334,0.4398137,118130.0,118120.0,0.45530494]
[1755416896180,0.17963782,118130.0,118120.0,0.45530494]
[1755416896358,0.4398137,118130.0,118120.0,0.45530494]
[1755416899718,0.17963782,118130.0,118120.0,0.45530494]
[1755416902600,0.01033282,118130.0,118120.0,0.45530494]
[1755416902742,0.0156236,118130.0,118120.0,0.45530494]
[1755416910137,0.0156236,118130.0,118120.0,0.71548082]
[1755416922050,0.0156236,118130.0,118120.0,0.45530494]
[1755416922265,0.0156236,118130.0,118120.0,0.71548082]
[1755416928616,0.0124136,118130.0,118120.0,0.71548082]
[1755416929324,0.0103736,118130.0,118120.0,0.71548082]
[1755416929758,0.00508282,118130.0,118120.0,0.71548082]
[1755416933282,0.00508282,118130.0,118120.0,0.71847082]
[1755416933704,0.00508282,118130.0,118120.0,0.9786467]
[1755416937090,0.00508282,118130.0,118120.0,1.0040857]
[1755416937292,0.00508282,118130.0,118120.0,0.74390982]
[1755416940369,0.00508282,118130.0,118120.0,1.0040857]
[1755416942018,0.00508282,118130.0,118120.0,0.48373394]
[1755416942160,0.00508282,118130.0,118120.0,0.74091982]
[1755416942374,0.00508282,118130.0,118120.0,0.48074394]
[1755416942611,0.00508282,118130.0,118120.0,0.74091982]
[1755416956574,0.00508282,118130.0,118120.0,1.0010957]
[1755416959365,0.00508282,118130.0,118120.0,0.74091982]
[1755416960424,0.00508282,118130.0,118120.0,1.0010957]
[1755416994580,1e-08,118130.0,118120.0,1.6467106]
[1755416995597,1e-08,118130.0,118120.0,1.6447106]
[1755416996036,1e-08,118130.0,118120.0,1.6467106]
[1755416996257,1e-08,118130.0,118120.0,1.6517106]
[1755417007446,1e-08,118130.0,118120.0,1.8549906]
[1755417014768,0.00216883,118140.0,118130.0,0.169305]
[1755417014986,0.00429883,118140.0,118130.0,0.96535303]
[1755417015198,0.00429883,118140.0,118130.0,0.96743303]
[1755417015603,0.00429883,118140.0,118130.0,0.99286603]
[1755417016223,0.00429883,118140.0,118130.0,0.99486603]
[1755417016425,0.00429883,118140.0,118130.0,0.99886603]
[1755417019580,0.00213,118140.0,118130.0,0.99886603]
[1755417019785,0.00323,118150.0,118140.0,0.16929067]
[1755417019961,0.00536,118150.0,118140.0,0.91566848]
[1755417020593,0.00536,118150.0,118140.0,0.94110148]
[1755417021209,0.00536,118150.0,118140.0,0.98176098]
[1755417021601,0.00536,118150.0,118140.0,0.98376098]
[1755417023850,0.00536,118150.0,118140.0,0.46340922]
[1755417024062,0.00536,118150.0,118140.0,0.98376098]
[1755417024700,0.00536,118150.0,118140.0,0.46340922]
[1755417025108,0.00536,118150.0,118140.0,0.98376098]
[1755417025821,0.00536,118150.0,118140.0,0.46340922]
[1755417026025,0.00536,118150.0,118140.0,0.98376098]
[1755417030990,0.00536,118150.0,118140.0,0.98584098]
[1755417031643,0.00536,118150.0,118140.0,0.94818148]
[1755417039525,0.00213,118150.0,118140.0,0.94818148]
[1755417047459,0.00213,118150.0,118140.0,0.6880056]
[1755417057888,0.0032,118160.0,118150.0,0.16927634]
[1755417058121,0.00523,118160.0,118150.0,0.70882783]
[1755417059090,0.00523,118160.0,118150.0,0.70982783]
[1755417059296,0.00523,118160.0,118150.0,0.71082783]
[1755417059840,0.00523,118160.0,118150.0,0.45065195]
[1755417060069,0.00523,118160.0,118150.0,0.71082783]
[1755417060920,0.00523,118160.0,118150.0,0.45065195]
[1755417061141,0.00523,118160.0,118150.0,0.71082783]
[1755417061388,0.00523,118160.0,118150.0,0.45065195]
[1755417062355,0.00523,118160.0,118150.0,0.45968743]
[1755417066675,0.17449201,118160.0,118150.0,0.45968743]
[1755417066903,0.43466789,118160.0,118150.0,0.45968743]
[1755417069015,0.26540588,118160.0,118150.0,0.45968743]
[1755417069803,0.00523,118160.0,118150.0,0.45968743]
[1755417070000,0.26540588,118160.0,118150.0,0.45968743]
[1755417082028,0.43466789,118160.0,118150.0,0.45968743]
[1755417086495,0.17449201,118160.0,118150.0,0.45968743]
[1755417086718,0.43466789,118160.0,118150.0,0.45968743]
[1755417087186,0.17449201,118160.0,118150.0,0.45968743]
[1755417087624,0.43466789,118160.0,118150.0,0.45968743]
[1755417088268,0.43466789,118160.0,118150.0,0.29041109]
[1755417089625,0.43466789,118160.0,118150.0,0.45968743]
[1755417090655,0.17449201,118160.0,118150.0,0.45968743]
[1755417090957,0.43466789,118160.0,118150.0,0.45968743]
[1755417092687,0.17449201,118160.0,118150.0,0.45968743]
[1755417094115,0.43466789,118160.0,118150.0,0.45968743]
[1755417098606,0.17449201,118160.0,118150.0,0.45968743]
[1755417098814,0.43466789,118160.0,118150.0,0.45968743]
[1755417102808,0.43466789,118160.0,118150.0,0.15313561]
[1755417103077,0.43466789,118160.0,118150.0,0.08681405]
[1755417103078,0.69484377,118160.0,118150.0,0.08681405]
[1755417103312,0.69484377,118160.0,118150.0,0.21497405]
[1755417118781,0.69484377,118160.0,118150.0,0.21397405]
[1755417118782,0.17449201,118160.0,118150.0,0.21397405]
[1755417119077,0.69484377,118160.0,118150.0,0.21297405]
[1755417124863,0.17449201,118160.0,118150.0,0.21297405]
[1755417125060,0.69484377,118160.0,118150.0,0.23556066]
[1755417140296,0.17449201,118160.0,118150.0,0.23556066]
[1755417140607,0.69484377,118160.0,118150.0,0.23556066]
[1755417143631,0.69484377,118160.0,118150.0,0.23177935]
[1755417156336,0.17449201,118160.0,118150.0,0.23177935]
[1755417156620,0.69484377,118160.0,118150.0,0.23177935]
[1755417163886,0.17449201,118160.0,118150.0,0.23177935]
[1755417164082,0.69484377,118160.0,118150.0,0.23177935]
[1755417175295,0.69484377,118160.0,118150.0,0.02258661]
[1755417175502,0.69484377,118160.0,118150.0,0.12812]
[1755417177866,0.72028177,118160.0,118150.0,0.12812]
[1755417188464,0.72028177,118160.0,118130.0,0.05028872]
[1755417188465,0.16929067,118140.0,118130.0,0.05028872]
[1755417188677,0.16929067,118140.0,118130.0,0.26528277]
[1755417188678,0.42946655,118140.0,118130.0,0.26528277]
[1755417189772,0.16929067,118140.0,118130.0,0.26528277]
[1755417190557,0.16929067,118140.0,118130.0,0.33815096]
[1755417191011,0.16929067,118140.0,118130.0,0.33915096]
[1755417191218,0.16929067,118140.0,118130.0,0.34015096]
[1755417198214,0.16929067,118140.0,118130.0,0.33704096]
[1755417201496,0.16929067,118140.0,118130.0,0.2987186]
[1755417215756,0.16929067,118140.0,118130.0,0.55889448]
[1755417220362,0.16929067,118140.0,118130.0,0.59779645]
[1755417229480,0.16929067,118140.0,118130.0,0.33762057]
[1755417229714,0.16929067,118140.0,118130.0,0.59779645]
[1755417236518,0.16929067,118140.0,118130.0,0.55889448]
[1755417242990,0.16929067,118140.0,118130.0,0.2987186]
[1755417243188,0.16929067,118140.0,118130.0,0.55889448]
[1755417246770,0.17128067,118140.0,118130.0,0.55889448]
[1755417248709,0.17128067,118140.0,118130.0,0.2987186]
[1755417248946,0.17128067,118140.0,118130.0,0.55889448]
[1755417251396,0.17452067,118140.0,118130.0,0.55889448]
[1755417256516,0.17452067,118140.0,118130.0,0.2987186]
[1755417256724,0.17452067,118140.0,118130.0,0.55889448]
[1755417258360,0.17452067,118140.0,118130.0,0.2987186]
[1755417260794,0.17452067,118140.0,118130.0,0.55889448]
[1755417261677,0.17452067,118140.0,118130.0,0.2987186]
[1755417261887,0.17452067,118140.0,118130.0,0.55889448]
[1755417264296,0.17452067,118140.0,118130.0,0.2987186]
[1755417264493,0.17452067,118140.0,118130.0,0.55889448]
[1755417267034,0.17128067,118140.0,118130.0,0.55889448]
[1755417271304,0.17452067,118140.0,118130.0,0.55889448]
[1755417282219,0.17452067,118140.0,118130.0,0.2987186]
[1755417295204,0.17128067,118140.0,118130.0,0.2987186]
[1755417296436,0.16929067,118140.0,118130.0,0.2987186]
[1755417297454,0.16929067,118140.0,118130.0,0.55889448]
[1755417309457,0.17140067,118140.0,118130.0,0.55889448]
[1755417312332,0.17140067,118140.0,118130.0,0.2987186]
[1755417312534,0.17140067,118140.0,118130.0,0.55889448]
[1755417342883,0.17436067,118140.0,118130.0,0.55889448]
[1755417356349,0.17436067,118140.0,118130.0,0.2987186]
[1755417356499,0.17436067,118140.0,118130.0,0.55889448]
[1755417359778,0.17436067,118140.0,118130.0,0.2987186]
[1755417361689,0.17436067,118140.0,118130.0,0.55889448]
[1755417362405,0.17436067,118140.0,118130.0,0.2987186]
[1755417362591,0.17436067,118140.0,118130.0,0.55889448]
[1755417365600,0.17436067,118140.0,118130.0,0.2987186]
[1755417368594,0.17436067,118140.0,118130.0,0.55889448]
[1755417368848,0.17436067,118140.0,118130.0,0.2987186]
[1755417369008,0.17436067,118140.0,118130.0,0.55889448]
[1755417370145,0.17140067,118140.0,118130.0,0.55889448]
[1755417370584,0.17140067,118140.0,118130.0,0.2987186]
[1755417370800,0.17140067,118140.0,118130.0,0.55889448]
[1755417372536,0.17140067,118140.0,118130.0,0.2987186]
[1755417372719,0.17140067,118140.0,118130.0,0.55889448]
[1755417377656,0.17140067,118140.0,118130.0,0.2987186]
[1755417378217,0.17140067,118140.0,118130.0,0.55889448]
[1755417387077,0.17140067,118140.0,118130.0,0.2987186]
[1755417387287,0.17140067,118140.0,118130.0,0.55889448]
[1755417388110,0.17140067,118140.0,118130.0,0.2987186]
[1755417388329,0.17140067,118140.0,118130.0,0.55889448]
[1755417388973,0.17140067,118140.0,118130.0,0.2987186]
[1755417389444,0.17437067,118140.0,118130.0,0.2987186]
[1755417389879,0.17437067,118140.0,118130.0,0.55889448]
[1755417392698,0.17437067,118140.0,118130.0,0.2987186]
[1755417393176,0.17437067,118140.0,118130.0,0.55889448]
[1755417394471,0.17437067,118140.0,118130.0,0.2987186]
[1755417394673,0.17437067,118140.0,118130.0,0.55889448]
[1755417396646,0.17437067,118140.0,118130.0,0.5501849]
[1755417396967,0.17437067,118140.0,118130.0,0.29000902]
[1755417397168,0.17437067,118140.0,118130.0,0.5501849]
[1755417397590,0.17437067,118140.0,118130.0,0.29000902]
[1755417397822,0.17437067,118140.0,118130.0,0.5501849]
[1755417398222,0.17140067,118140.0,118130.0,0.5501849]
[1755417403998,0.17140067,118140.0,118130.0,0.55891012]
[1755417406166,0.17140067,118140.0,118130.0,0.29000902]
[1755417406397,0.17459067,118140.0,118130.0,0.5501849]
[1755417407639,0.17459067,118140.0,118130.0,0.29000902]
[1755417407845,0.43476655,118140.0,118130.0,0.21714083]
[1755417408060,0.17459067,118140.0,118130.0,0.21714083]
[1755417409042,0.17459067,118140.0,118130.0,0.47731671]
[1755417411050,0.17140067,118140.0,118130.0,0.47731671]
[1755417412378,0.17140067,118140.0,118130.0,0.21714083]
[1755417412611,0.17140067,118140.0,118130.0,0.47731671]
[1755417413716,0.17140067,118140.0,118130.0,0.21714083]
[1755417413953,0.17140067,118140.0,118130.0,0.5522412]
[1755417415722,0.17140067,118140.0,118130.0,0.29206532]
[1755417416139,0.17140067,118140.0,118130.0,0.5522412]
[1755417416346,0.17140067,118140.0,118130.0,0.29206532]
[1755417416549,0.17140067,118140.0,118130.0,0.5522412]
[1755417417571,0.17459067,118140.0,118130.0,0.5522412]
[1755417417993,0.17459067,118140.0,118130.0,0.29206532]
[1755417418142,0.17459067,118140.0,118130.0,0.5522412]
[1755417423914,0.17140067,118140.0,118130.0,0.5522412]
[1755417437142,0.17040067,118140.0,118130.0,0.5522412]
[1755417442840,0.17040067,118140.0,118130.0,0.29206532]
[1755417443072,0.17040067,118140.0,118130.0,0.5522412]
[1755417448753,0.17040067,118140.0,118130.0,0.29206532]
[1755417449141,0.17040067,118140.0,118130.0,0.5522412]
[1755417462859,0.17040067,118140.0,118130.0,0.51807789]
[1755417464865,0.17040067,118140.0,118130.0,0.51257118]
[1755417465090,0.17040067,118140.0,118130.0,0.52026958]
[1755417465292,0.17334067,118140.0,118130.0,0.51515583]
[1755417472385,0.17334067,118140.0,118130.0,0.25497995]
[1755417472597,0.17334067,118140.0,118130.0,0.51515583]
[1755417481431,0.17334067,118140.0,118130.0,0.68446083]
[1755417482706,0.17334067,118140.0,118130.0,0.51515583]
[1755417490645,0.17334067,118140.0,118130.0,0.25497995]
[1755417490873,0.17334067,118140.0,118130.0,0.51320583]
[1755417492101,0.17334067,118140.0,118130.0,0.25302995]
[1755417492330,0.17334067,118140.0,118130.0,0.43828134]
[1755417501567,0.17334067,118140.0,118130.0,0.44025134]
[1755417518522,0.17334067,118140.0,118130.0,0.18007546]
[1755417518728,0.17334067,118140.0,118130.0,0.44025134]
[1755417529931,0.17334067,118140.0,118130.0,0.71025134]
[1755417530144,0.17334067,118140.0,118130.0,0.79507258]
[1755417536026,0.16829067,118140.0,118130.0,0.96437758]
[1755417539614,0.17122067,118140.0,118130.0,0.96437758]
[1755417541266,0.16928851,118150.0,118140.0,0.16929067]
[1755417541470,0.16928851,118150.0,118140.0,0.90440648]
[1755417541673,0.16928851,118150.0,118140.0,0.96121424]
[1755417542289,0.18065511,118160.0,118140.0,0.96121424]
[1755417542516,0.18065511,118160.0,118150.0,0.38801588]
[1755417542724,0.18264511,118160.0,118150.0,0.38801588]
[1755417543132,0.18264511,118160.0,118150.0,0.47481993]
[1755417543344,0.18264511,118160.0,118150.0,0.55964117]
[1755417544467,0.18364511,118160.0,118150.0,0.55964117]
[1755417545407,0.18364511,118160.0,118150.0,0.56813001]
[1755417545808,0.18464511,118160.0,118150.0,0.56813001]
[1755417546419,0.18364511,118160.0,118150.0,0.56813001]
[1755417546650,0.18264511,118160.0,118150.0,0.56813001]
[1755417546858,0.18264511,118160.0,118150.0,0.56913001]
[1755417553877,0.18264511,118160.0,118150.0,0.83913001]
[1755417554819,0.17772511,118160.0,118150.0,1.00840635]
[1755417555391,0.18071511,118160.0,118150.0,1.00840635]
[1755417555614,0.18270511,118160.0,118150.0,1.00840635]
[1755417562352,0.18270511,118160.0,118150.0,0.83913001]
[1755417573862,0.18270511,118160.0,118150.0,0.57895413]
[1755417574050,0.18270511,118160.0,118150.0,0.83913001]
[1755417592088,0.17772511,118160.0,118150.0,0.83913001]
[1755417592792,0.18086511,118160.0,118150.0,0.83913001]
[1755417595146,0.18085289,118170.0,118150.0,1.00840635]
[1755417595353,0.18085289,118170.0,118160.0,0.38797588]
[1755417595579,0.18301289,118170.0,118160.0,0.44478364]
[1755417596208,0.18301289,118170.0,118160.0,0.18460776]
[1755417596414,0.18501289,118170.0,118160.0,0.44478364]
[1755417596831,0.18401289,118170.0,118160.0,0.44478364]
[1755417597036,0.18501289,118170.0,118160.0,0.44478364]
[1755417597459,0.18401289,118170.0,118160.0,0.44478364]
[1755417597899,0.18301289,118170.0,118160.0,0.44478364]
[1755417598092,0.18401289,118170.0,118160.0,0.44478364]
[1755417598520,0.18301289,118170.0,118160.0,0.44478364]
[1755417599095,0.18301289,118170.0,118160.0,0.44578364]
[1755417599709,0.54230765,118180.0,118170.0,0.06698711]
[1755417599914,0.54230765,118180.0,118170.0,0.24627919]
[1755417600139,0.54446765,118180.0,118170.0,0.24627919]
[1755417600975,0.47688861,118180.0,118170.0,0.24627919]
[1755417601206,0.47788861,118180.0,118170.0,0.24627919]
[1755417601853,0.21771273,118180.0,118170.0,0.24842919]
[1755417602070,0.21771273,118180.0,118170.0,0.51154507]
[1755417602071,0.19011673,118180.0,118170.0,0.51154507]
[1755417602502,0.19111673,118180.0,118170.0,0.51154507]
[1755417603747,0.19111673,118180.0,118170.0,0.68079276]
[1755417607106,0.19111673,118180.0,118170.0,0.76560681]
[1755417607489,0.02179762,118180.0,118170.0,0.76560681]
[1755417607704,0.19103099,118180.0,118170.0,0.76560681]
[1755417607909,0.02079762,118180.0,118170.0,0.76560681]
[1755417608394,0.02079762,118180.0,118170.0,0.76660681]
[1755417609014,0.01979762,118180.0,118170.0,0.76660681]
[1755417610126,0.01979762,118180.0,118170.0,0.76860681]
[1755417620117,0.01979762,118180.0,118170.0,0.50843093]
[1755417620320,0.01979762,118180.0,118170.0,0.76860681]
[1755417620521,0.18903099,118180.0,118170.0,0.76860681]
[1755417621366,0.01979762,118180.0,118170.0,0.78605583]
[1755417622230,0.01979762,118180.0,118170.0,0.52587995]
[1755417622464,0.01979762,118180.0,118170.0,0.78605583]
[1755417622655,0.01979762,118180.0,118170.0,0.52587995]
[1755417622786,0.01979762,118180.0,118170.0,0.78605583]
[1755417627827,0.01979762,118180.0,118170.0,0.52587995]
[1755417627976,0.01979762,118180.0,118170.0,0.78605583]
[1755417633135,0.18903099,118180.0,118170.0,0.78605583]
[1755417634865,0.19116099,118180.0,118170.0,0.61680814]
[1755417635813,0.19116099,118180.0,118170.0,0.78605583]
[1755417635814,0.18903099,118180.0,118170.0,0.78605583]
[1755417643346,0.18903099,118180.0,118170.0,0.52587995]
[1755417643560,0.18903099,118180.0,118170.0,0.78605583]
[1755417645345,0.18903099,118180.0,118170.0,0.61680814]
[1755417648644,0.19116099,118180.0,118170.0,0.61386814]
[1755417648862,0.45447687,118180.0,118170.0,0.22374226]
[1755417649075,0.45447687,118180.0,118170.0,0.35178226]
[1755417651223,0.19430099,118180.0,118170.0,0.35178226]
[1755417651446,0.45447687,118180.0,118170.0,0.35178226]
[1755417653852,0.19430099,118180.0,118170.0,0.35178226]
[1755417654063,0.45447687,118180.0,118170.0,0.35178226]
[1755417655630,0.19430099,118180.0,118170.0,0.35178226]
[1755417655859,0.19116099,118180.0,118170.0,0.52297995]
[1755417656533,0.19116099,118180.0,118170.0,0.78315583]
[1755417656723,0.19116099,118180.0,118170.0,0.78629583]
[1755417657492,0.19116099,118180.0,118170.0,0.52611995]
[1755417662469,0.45133687,118180.0,118170.0,0.52611995]
[1755417662679,0.45133687,118180.0,118170.0,0.52297995]
[1755417663301,0.19116099,118180.0,118170.0,0.52297995]
[1755417663584,0.19116099,118180.0,118170.0,0.52605995]
[1755417664190,0.45133687,118180.0,118170.0,0.52605995]
[1755417664745,0.19116099,118180.0,118170.0,0.52605995]
[1755417673097,0.19116099,118180.0,118170.0,0.57961295]
[1755417674134,0.19116099,118180.0,118170.0,0.41036526]
[1755417679776,0.19116099,118180.0,118170.0,0.40728526]
[1755417682668,0.45133687,118180.0,118170.0,0.40728526]
[1755417686676,0.45133687,118180.0,118170.0,0.27924526]
[1755417686879,0.71453275,118180.0,118170.0,0.30347219]
[1755417687091,0.71453275,118180.0,118170.0,0.32092121]
[1755417691036,0.45435687,118180.0,118170.0,0.32092121]
[1755417694800,0.71453275,118180.0,118170.0,0.32092121]
[1755417695331,0.45435687,118180.0,118170.0,0.32092121]
[1755417695542,0.71453275,118180.0,118170.0,0.32092121]
[1755417696139,0.45435687,118180.0,118170.0,0.32092121]
[1755417696850,0.71453275,118180.0,118170.0,0.30359219]
[1755417697530,0.73996575,118180.0,118170.0,0.30359219]
[1755417697992,0.73996575,118180.0,118170.0,0.30159219]
[1755417698214,0.73996575,118180.0,118170.0,0.30259219]
[1755417699079,0.73996575,118180.0,118170.0,0.30159219]
[1755417699811,0.73996575,118180.0,118170.0,0.25010011]
[1755417700027,0.73996575,118180.0,118170.0,0.12154011]
[1755417700233,0.73996575,118180.0,118170.0,0.25018011]
[1755417707970,0.79081575,118180.0,118170.0,0.25018011]
[1755417708180,0.73996575,118180.0,118170.0,0.25018011]
[1755417708624,0.73996575,118180.0,118170.0,0.27519812]
[1755417713458,0.71453275,118180.0,118170.0,0.27519812]
[1755417719777,0.19418099,118180.0,118170.0,0.27519812]
[1755417719999,0.44920687,118180.0,118170.0,0.28031812]
[1755417720654,0.45129687,118180.0,118170.0,0.28031812]
[1755417723064,0.71147275,118180.0,118170.0,0.27732812]
[1755417724172,0.19112099,118180.0,118170.0,0.27732812]
[1755417724412,0.71147275,118180.0,118170.0,0.27732812]
[1755417725819,0.71147275,118180.0,118170.0,0.28047812]
[1755417733831,0.19112099,118180.0,118170.0,0.28047812]
[1755417734138,0.44920687,118180.0,118170.0,0.28047812]
[1755417734425,0.18903099,118180.0,118170.0,0.28047812]
[1755417734644,0.44920687,118180.0,118170.0,0.28047812]
[1755417734900,0.18903099,118180.0,118170.0,0.28047812]
[1755417735376,0.18903099,118180.0,118170.0,0.540654]
[1755417735811,0.18903099,118180.0,118170.0,0.55810302]
[1755417736032,0.18903099,118180.0,118170.0,0.72735071]
[1755417736245,0.01979762,118180.0,118170.0,0.81216476]
[1755417736469,0.01979762,118180.0,118170.0,0.55198888]
[1755417736689,0.01979762,118180.0,118170.0,0.81216476]
[1755417737609,0.01979762,118180.0,118170.0,0.81116476]
[1755417737843,0.01979762,118180.0,118170.0,0.81316476]
[1755417738051,0.01979762,118180.0,118170.0,0.81416476]
[1755417738842,0.01979762,118180.0,118170.0,0.81351967]
[1755417739612,0.01979762,118180.0,118170.0,0.55334379]
[1755417739832,0.01979762,118180.0,118170.0,0.81351967]
[1755417748001,0.01979762,118180.0,118170.0,0.55334379]
[1755417748214,0.01979762,118180.0,118170.0,0.81351967]
[1755417748633,0.01979762,118180.0,118170.0,0.55334379]
[1755417748843,0.01979762,118180.0,118170.0,0.81351967]
[1755417751062,0.01979762,118180.0,118170.0,0.55334379]
[1755417751280,0.01979762,118180.0,118170.0,0.81351967]
[1755417755497,0.01979762,118180.0,118170.0,0.55334379]
[1755417755687,0.18903099,118180.0,118170.0,1.08351967]
[1755417764313,0.18903099,118180.0,118170.0,0.82334379]
[1755417764541,0.18903099,118180.0,118170.0,1.08351967]
[1755417765690,0.18903099,118180.0,118170.0,0.82334379]
[1755417766124,0.18903099,118180.0,118170.0,1.08351967]
[1755417766976,0.18903099,118180.0,118170.0,1.02188525]
[1755417767420,0.18903099,118180.0,118170.0,1.01312614]
[1755417772286,0.19100099,118180.0,118170.0,0.58370257]
[1755417772714,0.19100099,118180.0,118170.0,0.84387845]
[1755417773020,0.19100099,118180.0,118170.0,0.84072845]
[1755417773250,0.19100099,118180.0,118170.0,0.56173355]
[1755417773251,0.45425687,118180.0,118170.0,0.56173355]